[Event "*** Titled Tuesday Blitz"]
[Site "Chess.com"]
[Date "2019.01.01"]
[Round "6"]
[White "kuli4ik"]
[Black "rasmussvane"]
[Result "0-1"]
[WhiteElo "2800"]
[BlackElo "2726"]
[TimeControl "180+2"]
[EndTime "14:28:12 PST"]
[Termination "rasmussvane won by checkmate"]

1. d4 {[%clk 0:03:01.9]} 1... Nf6 {[%clk 0:02:57.9]} 2. Bg5 {[%clk 0:03:02.9]}
2... d5 {[%clk 0:02:57.6]} 3. Nf3 {[%clk 0:03:02]} 3... c5 {[%clk 0:02:55.4]} 4.
dxc5 {[%clk 0:03:01.8]} 4... Ne4 {[%clk 0:02:53.5]} 5. Bf4 {[%clk 0:02:54.3]}
5... Nc6 {[%clk 0:02:52.7]} 6. Nbd2 {[%clk 0:02:47.4]} 6... Nxc5 {[%clk
0:02:53.2]} 7. e3 {[%clk 0:02:44.2]} 7... g6 {[%clk 0:02:52.5]} 8. c4 {[%clk
0:02:41]} 8... Bg7 {[%clk 0:02:42.5]} 9. cxd5 {[%clk 0:02:21.6]} 9... Qxd5
{[%clk 0:02:44.4]} 10. Nc4 {[%clk 0:02:22.7]} 10... Be6 {[%clk 0:02:29.3]} 11.
Be2 {[%clk 0:02:05.6]} 11... Qxd1+ {[%clk 0:02:20.3]} 12. Rxd1 {[%clk
0:02:07.5]} 12... Bxc4 {[%clk 0:02:21.7]} 13. Bxc4 {[%clk 0:02:09.3]} 13... Bxb2
{[%clk 0:02:23.1]} 14. Rb1 {[%clk 0:02:06]} 14... Bc3+ {[%clk 0:02:19.3]} 15.
Ke2 {[%clk 0:02:07.4]} 15... e5 {[%clk 0:02:09.9]} 16. Rhc1 {[%clk 0:02:02.6]}
16... exf4 {[%clk 0:02:02.6]} 17. Rxc3 {[%clk 0:02:03.4]} 17... O-O-O {[%clk
0:01:27.4]} 18. Bxf7 {[%clk 0:01:52.1]} 18... b6 {[%clk 0:01:18.4]} 19. exf4
{[%clk 0:01:43.6]} 19... Rhf8 {[%clk 0:01:18.7]} 20. Bb3 {[%clk 0:01:25.1]}
20... Rxf4 {[%clk 0:01:17.9]} 21. Kf1 {[%clk 0:01:15.6]} 21... Kc7 {[%clk
0:01:09.3]} 22. Re1 {[%clk 0:01:12.4]} 22... Rdf8 {[%clk 0:00:59.6]} 23. Re2
{[%clk 0:00:59.3]} 23... h6 {[%clk 0:00:57.9]} 24. h3 {[%clk 0:00:57.4]} 24...
g5 {[%clk 0:00:58.4]} 25. Bd5 {[%clk 0:00:52.1]} 25... R8f6 {[%clk 0:00:53.4]}
26. Bxc6 {[%clk 0:00:52.4]} 26... Kxc6 {[%clk 0:00:53.7]} 27. Ne5+ {[%clk
0:00:50.8]} 27... Kb7 {[%clk 0:00:49.7]} 28. f3 {[%clk 0:00:35.8]} 28... a5
{[%clk 0:00:43.2]} 29. Rcc2 {[%clk 0:00:22.4]} 29... Rd4 {[%clk 0:00:35.2]} 30.
Ng4 {[%clk 0:00:20.3]} 30... Rfd6 {[%clk 0:00:33.2]} 31. Re7+ {[%clk 0:00:18.1]}
31... Ka6 {[%clk 0:00:33.5]} 32. Ree2 {[%clk 0:00:18]} 32... Rd1+ {[%clk
0:00:34.4]} 33. Kf2 {[%clk 0:00:19.4]} 33... Nd3+ {[%clk 0:00:35.6]} 34. Kg3
{[%clk 0:00:20.5]} 34... Nf4 {[%clk 0:00:36.9]} 35. Rf2 {[%clk 0:00:19.4]} 35...
Re6 {[%clk 0:00:30]} 36. h4 {[%clk 0:00:18]} 36... Rh1 {[%clk 0:00:29.5]} 37.
Nh2 {[%clk 0:00:14.6]} 37... Nh5+ {[%clk 0:00:13.2]} 38. Kg4 {[%clk 0:00:13.3]}
38... Rxh2 {[%clk 0:00:14]} 39. hxg5 {[%clk 0:00:09.8]} 39... hxg5 {[%clk
0:00:13.8]} 40. Kxg5 {[%clk 0:00:11.7]} 40... Re5+ {[%clk 0:00:14.3]} 41. Kg4
{[%clk 0:00:11]} 41... Nf6+ {[%clk 0:00:14.5]} 42. Kf4 {[%clk 0:00:12.5]} 42...
Rb5 {[%clk 0:00:11.7]} 43. g4 {[%clk 0:00:13.6]} 43... Nd5+ {[%clk 0:00:12.1]}
44. Kg3 {[%clk 0:00:13.1]} 44... Rh7 {[%clk 0:00:11.5]} 45. f4 {[%clk
0:00:12.8]} 45... Rb4 {[%clk 0:00:09.9]} 46. Rcd2 {[%clk 0:00:11.9]} 46... Nc3
{[%clk 0:00:10]} 47. Rde2 {[%clk 0:00:09.1]} 47... Nxe2+ {[%clk 0:00:11]} 48.
Rxe2 {[%clk 0:00:11]} 48... Rf7 {[%clk 0:00:11.3]} 49. Rf2 {[%clk 0:00:11.1]}
49... Kb5 {[%clk 0:00:12.1]} 50. g5 {[%clk 0:00:12.6]} 50... Ka4 {[%clk
0:00:12.5]} 51. Kg4 {[%clk 0:00:14.2]} 51... Ka3 {[%clk 0:00:13.4]} 52. g6
{[%clk 0:00:15.7]} 52... Rf8 {[%clk 0:00:07.5]} 53. Kg5 {[%clk 0:00:17.2]} 53...
Rb1 {[%clk 0:00:08.8]} 54. Rg2 {[%clk 0:00:17.3]} 54... Rf1 {[%clk 0:00:09.4]}
55. Rg4 {[%clk 0:00:18.4]} 55... Kxa2 {[%clk 0:00:10.5]} 56. g7 {[%clk
0:00:19.9]} 56... Rg8 {[%clk 0:00:12]} 57. Kg6 {[%clk 0:00:21.4]} 57... a4
{[%clk 0:00:12.2]} 58. f5 {[%clk 0:00:22.9]} 58... Rxg7+ {[%clk 0:00:13]} 59.
Kxg7 {[%clk 0:00:23]} 59... Rxf5 {[%clk 0:00:14.6]} 60. Rxa4+ {[%clk 0:00:24.7]}
60... Kb3 {[%clk 0:00:16]} 61. Ra1 {[%clk 0:00:26.6]} 61... b5 {[%clk 0:00:17]}
62. Kg6 {[%clk 0:00:27.5]} 62... Rc5 {[%clk 0:00:17.8]} 63. Kf6 {[%clk
0:00:28.7]} 63... b4 {[%clk 0:00:18.4]} 64. Ke6 {[%clk 0:00:30.2]} 64... Kb2
{[%clk 0:00:19.7]} 65. Ra8 {[%clk 0:00:30.3]} 65... b3 {[%clk 0:00:20.8]} 66.
Kd6 {[%clk 0:00:32.2]} 66... Rc3 {[%clk 0:00:21.2]} 67. Kd5 {[%clk 0:00:34.1]}
67... Kb1 {[%clk 0:00:19.2]} 68. Kd4 {[%clk 0:00:36]} 68... Rc2 {[%clk
0:00:20.5]} 69. Kd3 {[%clk 0:00:37.5]} 69... b2 {[%clk 0:00:21.4]} 70. Rb8
{[%clk 0:00:39]} 70... Rc7 {[%clk 0:00:22.3]} 71. Kd2 {[%clk 0:00:40.6]} 71...
Rd7+ {[%clk 0:00:22.4]} 72. Kc3 {[%clk 0:00:41.4]} 72... Kc1 {[%clk 0:00:21.9]}
73. Rxb2 {[%clk 0:00:42.9]} 73... Rc7+ {[%clk 0:00:21.8]} 74. Kb3 {[%clk
0:00:42.7]} 74... Rb7+ {[%clk 0:00:22.3]} 75. Ka2 {[%clk 0:00:44.6]} 75... Rxb2+
{[%clk 0:00:23.1]} 76. Ka1 {[%clk 0:00:46.5]} 76... Rb3 {[%clk 0:00:24.2]} 77.
Ka2 {[%clk 0:00:47.6]} 77... Kc2 {[%clk 0:00:25.7]} 78. Ka1 {[%clk 0:00:49.5]}
78... Ra3# {[%clk 0:00:27.2]} 0-1

[Event "*** Titled Tuesday Blitz"]
[Site "Chess.com"]
[Date "2019.01.01"]
[Round "6"]
[White "VNeimer"]
[Black "kjzsdu"]
[Result "1-0"]
[WhiteElo "2423"]
[BlackElo "2515"]
[TimeControl "180+2"]
[EndTime "14:28:15 PST"]
[Termination "VNeimer won by resignation"]

1. Nf3 {[%clk 0:03:01.9]} 1... c5 {[%clk 0:02:59.8]} 2. c4 {[%clk 0:02:58.7]}
2... Nc6 {[%clk 0:03:00.6]} 3. Nc3 {[%clk 0:02:59.4]} 3... Nf6 {[%clk
0:03:01.6]} 4. e3 {[%clk 0:02:59.4]} 4... e6 {[%clk 0:02:57.5]} 5. a3 {[%clk
0:02:51.3]} 5... a6 {[%clk 0:02:47.5]} 6. d4 {[%clk 0:02:50.3]} 6... d6 {[%clk
0:02:44.9]} 7. d5 {[%clk 0:02:49.6]} 7... Ne7 {[%clk 0:02:42.3]} 8. Be2 {[%clk
0:02:42.4]} 8... e5 {[%clk 0:02:38.8]} 9. e4 {[%clk 0:02:42.6]} 9... g6 {[%clk
0:02:32.2]} 10. b4 {[%clk 0:02:41.2]} 10... b6 {[%clk 0:02:32.9]} 11. bxc5
{[%clk 0:02:38.8]} 11... bxc5 {[%clk 0:02:33.9]} 12. Rb1 {[%clk 0:02:38.3]}
12... Bg7 {[%clk 0:02:32.2]} 13. O-O {[%clk 0:02:34.1]} 13... O-O {[%clk
0:02:33]} 14. Nd2 {[%clk 0:02:33.6]} 14... Ne8 {[%clk 0:02:29.2]} 15. Na4 {[%clk
0:02:32]} 15... Ra7 {[%clk 0:02:17.7]} 16. Nb6 {[%clk 0:02:19.9]} 16... Bh6
{[%clk 0:02:12.3]} 17. Nxc8 {[%clk 0:02:15.4]} 17... Qxc8 {[%clk 0:02:12]} 18.
Qa4 {[%clk 0:02:12.7]} 18... f5 {[%clk 0:02:10.5]} 19. exf5 {[%clk 0:02:10]}
19... gxf5 {[%clk 0:02:11.4]} 20. Nf3 {[%clk 0:02:09.3]} 20... Bxc1 {[%clk
0:02:11.5]} 21. Rfxc1 {[%clk 0:02:11.2]} 21... h6 {[%clk 0:02:10.8]} 22. Nh4
{[%clk 0:02:09.2]} 22... Nf6 {[%clk 0:02:00.1]} 23. Rb6 {[%clk 0:02:07.1]} 23...
Rd8 {[%clk 0:01:43.4]} 24. Bd3 {[%clk 0:01:48.8]} 24... e4 {[%clk 0:01:41.7]}
25. Bf1 {[%clk 0:01:41.8]} 25... f4 {[%clk 0:01:38.4]} 26. Rcb1 {[%clk
0:01:40.9]} 26... f3 {[%clk 0:01:19.8]} 27. gxf3 {[%clk 0:01:34.8]} 27... exf3
{[%clk 0:01:19.7]} 28. Nxf3 {[%clk 0:01:33.6]} 28... Nexd5 {[%clk 0:01:04]} 29.
cxd5 {[%clk 0:01:21.7]} 29... Rg7+ {[%clk 0:01:00.8]} 30. Kh1 {[%clk 0:01:16.7]}
30... Qf5 {[%clk 0:00:59.4]} 31. Bg2 {[%clk 0:01:05.8]} 31... Ne4 {[%clk
0:00:59.1]} 32. R1b2 {[%clk 0:00:54.5]} 32... Rdd7 {[%clk 0:00:47.4]} 33. Rb8+
{[%clk 0:00:46.3]} 33... Kh7 {[%clk 0:00:39.9]} 34. Qxe4 {[%clk 0:00:44.9]}
34... Qxe4 {[%clk 0:00:40.7]} 35. Ng5+ {[%clk 0:00:46]} 35... Rxg5 {[%clk
0:00:42.2]} 36. Bxe4+ {[%clk 0:00:47]} 36... Kg7 {[%clk 0:00:43.9]} 37. R2b7
{[%clk 0:00:46.2]} 37... Rxb7 {[%clk 0:00:44.6]} 38. Rxb7+ {[%clk 0:00:48.1]}
38... Kf6 {[%clk 0:00:46.3]} 39. Rb6 {[%clk 0:00:47.2]} 39... Ke5 {[%clk
0:00:47.5]} 40. f3 {[%clk 0:00:45.6]} 40... a5 {[%clk 0:00:38]} 41. Ra6 {[%clk
0:00:43.7]} 41... Rg8 {[%clk 0:00:35]} 42. Rxa5 {[%clk 0:00:44]} 42... Rb8
{[%clk 0:00:36.5]} 43. Kg2 {[%clk 0:00:43.4]} 43... h5 {[%clk 0:00:31.2]} 44.
Kg3 {[%clk 0:00:42.7]} 44... Rb2 {[%clk 0:00:31.4]} 45. Ra8 {[%clk 0:00:39.6]}
45... Ra2 {[%clk 0:00:26.7]} 46. Rh8 {[%clk 0:00:35.8]} 46... Rxa3 {[%clk
0:00:21.2]} 47. Rxh5+ {[%clk 0:00:36.3]} 47... Kd4 {[%clk 0:00:22.6]} 48. Rh6
{[%clk 0:00:37.4]} 48... Ra6 {[%clk 0:00:23.7]} 49. h4 {[%clk 0:00:36.6]} 49...
c4 {[%clk 0:00:24.7]} 50. Rh7 {[%clk 0:00:37.6]} 50... Ra8 {[%clk 0:00:22.4]}
51. h5 {[%clk 0:00:37.1]} 51... Rc8 {[%clk 0:00:20.9]} 52. h6 {[%clk 0:00:35.3]}
52... c3 {[%clk 0:00:22]} 53. Rd7 {[%clk 0:00:36]} 53... c2 {[%clk 0:00:19.2]}
54. Bxc2 {[%clk 0:00:36.7]} 54... Rxc2 {[%clk 0:00:21.1]} 55. Rxd6 {[%clk
0:00:33.5]} 55... Ke5 {[%clk 0:00:18.5]} 56. Rd7 {[%clk 0:00:32.4]} 56... Kf5
{[%clk 0:00:13.8]} 57. h7 {[%clk 0:00:32.9]} 57... Rc8 {[%clk 0:00:14.9]} 58.
Rg7 {[%clk 0:00:31.1]} 58... Rh8 {[%clk 0:00:14.9]} 59. d6 {[%clk 0:00:31.9]}
59... Kf6 {[%clk 0:00:15.5]} 60. Re7 {[%clk 0:00:32.4]} 60... Rd8 {[%clk
0:00:14.9]} 61. Kf4 {[%clk 0:00:32.1]} 61... Rf8 {[%clk 0:00:14.3]} 62. Ke4
{[%clk 0:00:32.5]} 62... Ra8 {[%clk 0:00:14.4]} 63. f4 {[%clk 0:00:32.8]} 63...
Ra4+ {[%clk 0:00:15]} 64. Kd5 {[%clk 0:00:33.7]} 64... Ra8 {[%clk 0:00:15]} 65.
Kc6 {[%clk 0:00:33.9]} 65... Rc8+ {[%clk 0:00:15.9]} 66. Rc7 {[%clk 0:00:34.1]}
66... Rh8 {[%clk 0:00:17.5]} 67. d7 {[%clk 0:00:33.8]} 67... Ke6 {[%clk
0:00:14.6]} 68. Rc8 {[%clk 0:00:33.6]} 1-0

[Event "*** Titled Tuesday Blitz"]
[Site "Chess.com"]
[Date "2019.01.01"]
[Round "6"]
[White "Gr3egor"]
[Black "Zufi1811"]
[Result "0-1"]
[WhiteElo "2451"]
[BlackElo "2414"]
[TimeControl "180+2"]
[EndTime "14:28:29 PST"]
[Termination "Zufi1811 won by resignation"]

1. e4 {[%clk 0:03:01.9]} 1... c5 {[%clk 0:02:59.3]} 2. Nf3 {[%clk 0:03:02.2]}
2... Nc6 {[%clk 0:03:00.7]} 3. d4 {[%clk 0:02:59.7]} 3... cxd4 {[%clk
0:03:02.6]} 4. Nxd4 {[%clk 0:03:01.6]} 4... Qb6 {[%clk 0:03:03.4]} 5. Nb3 {[%clk
0:03:02.2]} 5... Nf6 {[%clk 0:03:04.8]} 6. Nc3 {[%clk 0:03:02.9]} 6... e6 {[%clk
0:03:06.2]} 7. Be3 {[%clk 0:03:04.2]} 7... Qc7 {[%clk 0:03:06.6]} 8. a3 {[%clk
0:03:04.6]} 8... a6 {[%clk 0:03:07.3]} 9. Be2 {[%clk 0:03:05.4]} 9... b5 {[%clk
0:03:07.8]} 10. Qd2 {[%clk 0:03:01.5]} 10... Bb7 {[%clk 0:03:05.3]} 11. f4
{[%clk 0:03:00.1]} 11... d6 {[%clk 0:03:03.8]} 12. Bf3 {[%clk 0:02:59.6]} 12...
Be7 {[%clk 0:03:04.4]} 13. g4 {[%clk 0:02:59.7]} 13... O-O {[%clk 0:03:05.1]}
14. g5 {[%clk 0:02:58.2]} 14... Nd7 {[%clk 0:03:02.7]} 15. h4 {[%clk 0:02:51.1]}
15... Nb6 {[%clk 0:02:56.2]} 16. Qf2 {[%clk 0:02:49.5]} 16... Nc4 {[%clk
0:02:56.7]} 17. Bc1 {[%clk 0:02:50.9]} 17... f5 {[%clk 0:02:40.3]} 18. exf5
{[%clk 0:02:48.7]} 18... Rxf5 {[%clk 0:02:42.2]} 19. Bg4 {[%clk 0:02:36]} 19...
Raf8 {[%clk 0:02:37.3]} 20. Bxf5 {[%clk 0:02:34.4]} 20... Rxf5 {[%clk
0:02:39.2]} 21. O-O {[%clk 0:02:31.9]} 21... Qc8 {[%clk 0:02:06.5]} 22. Nd2
{[%clk 0:02:28.3]} 22... N6a5 {[%clk 0:01:55]} 23. Nf3 {[%clk 0:02:13.8]} 23...
Bd8 {[%clk 0:01:43.4]} 24. Kh2 {[%clk 0:02:05.7]} 24... Bb6 {[%clk 0:01:43.7]}
25. Qg3 {[%clk 0:02:07]} 25... Ne3 {[%clk 0:01:37.8]} 26. Bxe3 {[%clk
0:01:58.2]} 26... Bxe3 {[%clk 0:01:39.7]} 27. Ne1 {[%clk 0:01:59.9]} 27... Nc4
{[%clk 0:01:27.1]} 28. Nd3 {[%clk 0:01:56.9]} 28... Ba7 {[%clk 0:01:05.7]} 29.
Rae1 {[%clk 0:01:50.4]} 29... g6 {[%clk 0:00:58.9]} 30. Re2 {[%clk 0:01:39.5]}
30... e5 {[%clk 0:00:43.5]} 31. Rfe1 {[%clk 0:01:37.2]} 31... Bd4 {[%clk
0:00:34.5]} 32. Ne4 {[%clk 0:01:22.8]} 32... d5 {[%clk 0:00:09.2]} 33. Nf6+
{[%clk 0:01:19.2]} 33... Rxf6 {[%clk 0:00:09.4]} 34. gxf6 {[%clk 0:01:19.5]}
34... e4 {[%clk 0:00:11.3]} 35. Ne5 {[%clk 0:01:19.8]} 35... Nxe5 {[%clk
0:00:11]} 36. fxe5 {[%clk 0:01:21.6]} 36... Qe6 {[%clk 0:00:11.5]} 37. Qh3
{[%clk 0:01:10.3]} 37... Bxe5+ {[%clk 0:00:06.6]} 38. Kg2 {[%clk 0:01:11.8]}
38... Kf7 {[%clk 0:00:02.8]} 39. Qxe6+ {[%clk 0:01:09.4]} 39... Kxe6 {[%clk
0:00:04.7]} 40. c3 {[%clk 0:01:11.1]} 40... Bxf6 {[%clk 0:00:05.6]} 41. h5
{[%clk 0:01:11.8]} 41... gxh5 {[%clk 0:00:05.7]} 42. Rh1 {[%clk 0:01:12.9]}
42... h4 {[%clk 0:00:06.7]} 43. Kh3 {[%clk 0:01:13.8]} 43... h6 {[%clk
0:00:05.8]} 44. Kg4 {[%clk 0:01:13.7]} 44... Bc8 {[%clk 0:00:07.2]} 45. Kh5
{[%clk 0:01:08.3]} 45... Bg5 {[%clk 0:00:07.4]} 46. Rf1 {[%clk 0:01:04]} 46...
Ke5 {[%clk 0:00:07.6]} 47. Rf8 {[%clk 0:00:58.7]} 47... Be6 {[%clk 0:00:06.9]}
48. b3 {[%clk 0:00:34.7]} 48... h3 {[%clk 0:00:05.3]} 49. a4 {[%clk 0:00:28.9]}
49... Bf4 {[%clk 0:00:05.6]} 50. Kh4 {[%clk 0:00:26.8]} 50... h2 {[%clk
0:00:04.5]} 51. Re1 {[%clk 0:00:28.3]} 51... Bf5 {[%clk 0:00:03.7]} 52. axb5
{[%clk 0:00:21.5]} 52... axb5 {[%clk 0:00:05.6]} 53. Rb8 {[%clk 0:00:21.7]}
53... e3 {[%clk 0:00:04.4]} 54. Rxb5 {[%clk 0:00:22.4]} 54... Ke4 {[%clk
0:00:05.5]} 55. c4 {[%clk 0:00:22.7]} 55... d4 {[%clk 0:00:05.5]} 56. Rd5 {[%clk
0:00:23.1]} 56... d3 {[%clk 0:00:05.7]} 57. b4 {[%clk 0:00:24.5]} 57... d2
{[%clk 0:00:06.5]} 58. Rxd2 {[%clk 0:00:26.1]} 58... Kf3 {[%clk 0:00:06.4]} 59.
Ra2 {[%clk 0:00:21.9]} 59... Bd3 {[%clk 0:00:06.8]} 60. c5 {[%clk 0:00:21.5]}
60... e2 {[%clk 0:00:07.9]} 61. c6 {[%clk 0:00:22.9]} 61... Kf2 {[%clk 0:00:08]}
62. Rea1 {[%clk 0:00:21.4]} 62... Be4 {[%clk 0:00:06.9]} 63. b5 {[%clk 0:00:21]}
63... h1=Q+ {[%clk 0:00:07.8]} 64. Rxh1 {[%clk 0:00:22.2]} 64... Bxh1 {[%clk
0:00:09.2]} 65. Kg4 {[%clk 0:00:20.9]} 65... Bc7 {[%clk 0:00:08.7]} 66. Kf5
{[%clk 0:00:22.2]} 66... Kf1 {[%clk 0:00:07.7]} 67. Rxe2 {[%clk 0:00:20.4]}
67... Kxe2 {[%clk 0:00:09.6]} 68. Ke6 {[%clk 0:00:22.3]} 68... h5 {[%clk
0:00:08.9]} 69. Kd7 {[%clk 0:00:23.6]} 69... Ba5 {[%clk 0:00:09.9]} 70. c7
{[%clk 0:00:23.3]} 70... Bxc7 {[%clk 0:00:10.5]} 71. Kxc7 {[%clk 0:00:25.2]}
71... h4 {[%clk 0:00:11.2]} 72. b6 {[%clk 0:00:26.3]} 72... h3 {[%clk
0:00:12.7]} 73. b7 {[%clk 0:00:27.6]} 0-1

[Event "*** Titled Tuesday Blitz"]
[Site "Chess.com"]
[Date "2019.01.01"]
[Round "6"]
[White "Chessmatus"]
[Black "ChessMavenYeti"]
[Result "1/2-1/2"]
[WhiteElo "2196"]
[BlackElo "2097"]
[TimeControl "180+2"]
[EndTime "14:28:43 PST"]
[Termination "Game drawn by agreement"]

1. d4 {[%clk 0:03:01.9]} 1... Nf6 {[%clk 0:02:55.8]} 2. c4 {[%clk 0:03:02.5]}
2... e6 {[%clk 0:02:56.8]} 3. g3 {[%clk 0:03:02.9]} 3... d5 {[%clk 0:02:53.4]}
4. Nf3 {[%clk 0:03:01.6]} 4... Be7 {[%clk 0:02:54.6]} 5. Bg2 {[%clk 0:03:01.9]}
5... O-O {[%clk 0:02:56.1]} 6. O-O {[%clk 0:03:02.6]} 6... dxc4 {[%clk
0:02:56.9]} 7. Qc2 {[%clk 0:03:01]} 7... a6 {[%clk 0:02:57.8]} 8. a4 {[%clk
0:03:00.6]} 8... Bd7 {[%clk 0:02:57.4]} 9. Qxc4 {[%clk 0:03:01.6]} 9... Bc6
{[%clk 0:02:57.3]} 10. Nc3 {[%clk 0:02:55.6]} 10... Nbd7 {[%clk 0:02:56.3]} 11.
Bf4 {[%clk 0:02:56.2]} 11... Nd5 {[%clk 0:02:56.3]} 12. Bd2 {[%clk 0:02:55.9]}
12... Nxc3 {[%clk 0:02:50.5]} 13. Qxc3 {[%clk 0:02:47.3]} 13... a5 {[%clk
0:02:46.6]} 14. Rfc1 {[%clk 0:02:42]} 14... Ra6 {[%clk 0:02:41.5]} 15. e3 {[%clk
0:02:42.1]} 15... Rb6 {[%clk 0:02:41]} 16. Ne1 {[%clk 0:02:42.6]} 16... Bxg2
{[%clk 0:02:39.5]} 17. Kxg2 {[%clk 0:02:43.3]} 17... c5 {[%clk 0:02:27.3]} 18.
Nd3 {[%clk 0:02:35.7]} 18... cxd4 {[%clk 0:02:26.5]} 19. Qxa5 {[%clk 0:02:28.5]}
19... dxe3 {[%clk 0:02:22.2]} 20. Bxe3 {[%clk 0:02:24.4]} 20... Rb3 {[%clk
0:02:04.5]} 21. Qxd8 {[%clk 0:02:05]} 21... Rxd8 {[%clk 0:02:06.4]} 22. Rc3
{[%clk 0:02:05.9]} 22... Rxc3 {[%clk 0:01:57]} 23. bxc3 {[%clk 0:02:06.5]} 23...
Nf6 {[%clk 0:01:50.9]} 24. Nc5 {[%clk 0:01:51.6]} 24... Bxc5 {[%clk 0:01:28]}
25. Bxc5 {[%clk 0:01:50.6]} 25... Rc8 {[%clk 0:01:29.1]} 26. Bd4 {[%clk
0:01:50.6]} 26... Nd5 {[%clk 0:01:29.6]} 27. Rb1 {[%clk 0:01:50.6]} 27... Rc7
{[%clk 0:01:15.6]} 28. a5 {[%clk 0:01:18.8]} 28... f6 {[%clk 0:01:10.9]} 29. Rb3
{[%clk 0:01:16.3]} 29... e5 {[%clk 0:01:08.5]} 30. Be3 {[%clk 0:01:11.7]} 30...
Nxc3 {[%clk 0:01:02.2]} 31. Bb6 {[%clk 0:01:10.7]} 31... Rc8 {[%clk 0:00:56.6]}
32. Be3 {[%clk 0:01:09.8]} 32... Rc7 {[%clk 0:00:33.5]} 33. Bb6 {[%clk
0:01:10.2]} 33... Rc8 {[%clk 0:00:33.3]} 34. Ba7 {[%clk 0:01:11.3]} 34... Rc7
{[%clk 0:00:30.7]} 35. Bb8 {[%clk 0:01:12.1]} 35... Rc5 {[%clk 0:00:25.6]} 36.
Bd6 {[%clk 0:00:50.9]} 36... Rc6 {[%clk 0:00:21.6]} 37. Be7 {[%clk 0:00:22.2]}
37... Rc7 {[%clk 0:00:19.3]} 38. Bd8 {[%clk 0:00:21]} 38... Rc8 {[%clk
0:00:18.2]} 39. Be7 {[%clk 0:00:21.3]} 39... Rc7 {[%clk 0:00:19.3]} 40. Bd6
{[%clk 0:00:22.6]} 40... Rc6 {[%clk 0:00:20.4]} 41. Bb8 {[%clk 0:00:23.9]} 41...
Rc5 {[%clk 0:00:21.6]} 42. Ba7 {[%clk 0:00:21]} 42... Rxa5 {[%clk 0:00:21.8]}
43. Bb6 {[%clk 0:00:22.1]} 43... Rb5 {[%clk 0:00:21.8]} 44. Rxc3 {[%clk
0:00:23.5]} 44... Rxb6 {[%clk 0:00:23.2]} 45. Rc8+ {[%clk 0:00:24]} 45... Kf7
{[%clk 0:00:24.7]} 46. Rc7+ {[%clk 0:00:25.3]} 46... Kg6 {[%clk 0:00:26.2]} 47.
h4 {[%clk 0:00:25.1]} 47... Rb2 {[%clk 0:00:26.4]} 48. h5+ {[%clk 0:00:25.7]}
48... Kh6 {[%clk 0:00:27.4]} 49. g4 {[%clk 0:00:23.6]} 49... e4 {[%clk
0:00:26.9]} 50. Kg3 {[%clk 0:00:24.1]} 50... Rb3+ {[%clk 0:00:28.3]} 51. Kh4
{[%clk 0:00:24.5]} 51... Rf3 {[%clk 0:00:27.4]} 52. Rc2 {[%clk 0:00:23.8]} 52...
b5 {[%clk 0:00:27.1]} 53. Re2 {[%clk 0:00:24.1]} 53... Rf4 {[%clk 0:00:27.5]}
54. Rc2 {[%clk 0:00:23.6]} 54... b4 {[%clk 0:00:25.2]} 55. Rc6 {[%clk
0:00:23.9]} 55... g5+ {[%clk 0:00:24.8]} 56. Kg3 {[%clk 0:00:21.6]} 56... Rf3+
{[%clk 0:00:25.2]} 57. Kg2 {[%clk 0:00:22.6]} 57... b3 {[%clk 0:00:25.8]} 58.
Rb6 {[%clk 0:00:23.8]} 58... Rc3 {[%clk 0:00:25]} 59. Rxf6+ {[%clk 0:00:22.4]}
59... Kg7 {[%clk 0:00:26.1]} 60. Rb6 {[%clk 0:00:23.6]} 60... h6 {[%clk
0:00:26.1]} 61. Rg6+ {[%clk 0:00:23.9]} 61... Kh7 {[%clk 0:00:26.1]} 62. Rb6
{[%clk 0:00:24.3]} 62... Rd3 {[%clk 0:00:25.7]} 63. Kf1 {[%clk 0:00:24.1]} 63...
Kg7 {[%clk 0:00:26.5]} 64. Ke2 {[%clk 0:00:24.4]} 64... Rc3 {[%clk 0:00:27.1]}
65. Kd2 {[%clk 0:00:24.5]} 65... Rf3 {[%clk 0:00:27.6]} 66. Ke2 {[%clk
0:00:25.7]} 66... Rf4 {[%clk 0:00:28.8]} 67. Rxb3 {[%clk 0:00:24.7]} 67... Rxg4
{[%clk 0:00:30.2]} 68. Rb7+ {[%clk 0:00:23.6]} 68... Kg8 {[%clk 0:00:29.6]} 69.
Rb8+ {[%clk 0:00:24.4]} 69... Kg7 {[%clk 0:00:30.9]} 70. Rb7+ {[%clk 0:00:25.8]}
70... Kf8 {[%clk 0:00:29.6]} 71. Rb8+ {[%clk 0:00:26.9]} 71... Kf7 {[%clk
0:00:30.7]} 72. Rh8 {[%clk 0:00:27.4]} 72... Rh4 {[%clk 0:00:29.4]} 73. Rxh6
{[%clk 0:00:28.1]} 73... g4 {[%clk 0:00:30.8]} 74. Kf1 {[%clk 0:00:25.8]} 74...
Kg7 {[%clk 0:00:31.5]} 75. Rg6+ {[%clk 0:00:26.1]} 75... Kh7 {[%clk 0:00:32.6]}
76. Re6 {[%clk 0:00:27.2]} 76... Rxh5 {[%clk 0:00:31.4]} 77. Rxe4 {[%clk
0:00:28.3]} 77... Rg5 {[%clk 0:00:33.2]} 78. Kg2 {[%clk 0:00:29.5]} 78... Kg6
{[%clk 0:00:34.6]} 79. Kg3 {[%clk 0:00:30.7]} 79... Kf6 {[%clk 0:00:33.8]} 80.
Rxg4 {[%clk 0:00:30.4]} 80... Ra5 {[%clk 0:00:34.6]} 81. Rf4+ {[%clk 0:00:30.3]}
81... Kg5 {[%clk 0:00:34.9]} 82. Rb4 {[%clk 0:00:30.5]} 82... Ra3+ {[%clk
0:00:35.6]} 83. f3 {[%clk 0:00:32]} 83... Kf5 {[%clk 0:00:35.3]} 84. Rb5+ {[%clk
0:00:33.3]} 84... Kf6 {[%clk 0:00:36.1]} 1/2-1/2